bitfinex/quotes_ETHUSD_20240730
["timestamp","ask_amount","ask_price","bid_price","bid_amount"]
[1722349737067,6.603107,3331.8,3330.5,2.3927]
[1722349737068,3.00192,3331.2,3330.5,2.3927]
[1722349737244,1.150267,3331.8,3330.3,3.00267]
[1722349737245,0.55,3331.7,3330.3,3.00267]
[1722349737547,0.55,3331.7,3330.6,0.09639045]
[1722349737548,3.00167,3331.5,3330.6,0.09639045]
[1722349737765,3.00159,3331.6,3330.6,3.00238]
[1722349738048,3.301749,3331.6,3330.9,3.00219]
[1722349738561,3.301749,3331.6,3331.0,0.09542159]
[1722349738562,0.300159,3331.6,3331.0,0.09542159]
[1722349738712,3.00175,3331.4,3331.0,0.09542159]
[1722349738906,3.00111,3332.1,3331.0,0.09542159]
[1722349739227,3.00182,3331.4,3330.6,3.00237]
[1722349739437,3.00142,3331.8,3331.1,0.09538126]
[1722349739637,3.00161,3331.6,3330.8,3.00228]
[1722349739855,3.00161,3331.6,3331.2,0.09534094]
[1722349739856,3.0018,3331.4,3331.2,0.09534094]
[1722349740215,6.0036,3331.4,3330.5,3.00249]
[1722349740416,3.00163,3331.6,3331.3,0.09530062]
[1722349740576,0.300142,3331.7,3330.6,3.00245]
[1722349740763,3.00208,3331.1,3330.3,3.00271]
[1722349740961,3.00195,3331.2,3329.9,2.4943]
[1722349741161,2.2858,3331.4,3329.6,6.00659]
[1722349741409,3.00252,3330.6,3329.6,3.840019]
[1722349741591,0.22858,3331.3,3329.4,2.3608]
[1722349741592,3.00269,3330.4,3329.4,2.3608]
[1722349741810,3.00293,3330.1,3329.4,2.3608]
[1722349741967,3.0,3331.1,3329.5,3.00344]
[1722349741968,3.00272,3330.4,3329.5,3.00344]
[1722349742167,3.00275,3330.3,3329.5,3.00344]
[1722349742371,3.00309,3329.9,3329.2,3.00371]
[1722349742622,3.00296,3330.1,3329.3,3.00363]
[1722349742623,3.00301,3330.0,3329.3,3.00363]
[1722349742782,3.00309,3329.9,3329.0,3.00386]
[1722349742968,3.00276,3330.3,3329.1,0.541266]
[1722349743306,3.00261,3330.5,3329.5,3.00336]
[1722349743476,3.00261,3330.5,3329.7,3.00322]
[1722349743671,3.00267,3330.4,3329.5,3.0034]
[1722349743892,3.00298,3330.1,3329.8,0.09297987]
[1722349744096,3.00302,3330.0,3329.3,3.00358]
[1722349744288,3.00285,3330.2,3329.3,3.00355]
[1722349744489,0.35108057,3330.8,3329.4,0.09315784]
[1722349744802,3.00282,3330.2,3328.9,2.4088]
[1722349745013,3.00361,3329.4,3328.9,2.4088]
[1722349745177,3.00346,3329.5,3329.0,0.09331932]
[1722349745375,3.00364,3329.3,3328.7,7.37]
[1722349745576,6.00735,3329.3,3328.8,0.09343866]
[1722349746017,3.00364,3329.3,3328.7,7.37]
[1722349746319,3.00332,3329.7,3328.8,0.09343866]
[1722349746823,3.00313,3329.9,3329.1,3.00381]
[1722349747035,3.00323,3329.8,3328.9,6.101353]
[1722349747314,3.00344,3329.6,3329.2,0.09338188]
[1722349747524,3.00304,3330.0,3329.0,3.00384]
[1722349747679,3.00324,3329.8,3329.3,0.09334151]
[1722349747881,3.00346,3329.5,3328.7,10.37408]
[1722349748220,6.00699,3329.5,3329.4,0.09330114]
[1722349748402,3.00388,3329.1,3328.4,5.45893]
[1722349748605,3.00398,3329.0,3328.3,7.37]
[1722349748806,3.00397,3329.0,3328.3,7.37]
[1722349749188,3.00397,3329.0,3328.3,10.37453]
[1722349749682,3.00397,3329.0,3328.3,7.37]
[1722349750076,3.00413,3328.8,3328.3,7.37]
[1722349750277,3.00413,3328.8,3327.9,2.2534]
[1722349750278,0.60081,3328.8,3327.9,2.2534]
[1722349750478,3.00406,3328.9,3328.1,3.00469]
[1722349750883,3.00413,3328.8,3328.1,3.00469]
[1722349751181,3.00406,3328.9,3327.9,5.25821]
[1722349751382,3.00406,3328.9,3328.1,3.00465]
[1722349752027,12.2332135,3329.4,3328.0,0.525827]
[1722349752228,3.00451,3328.4,3327.9,2.2534]
[1722349752521,3.00451,3328.4,3327.6,13.37516]
[1722349752522,3.00462,3328.2,3327.6,7.37]
[1722349752729,3.00487,3328.0,3327.6,7.37]
[1722349752892,3.00487,3328.0,3327.4,2.4721]
[1722349753080,3.00467,3328.2,3327.2,7.37]
[1722349753422,3.00432,3328.6,3327.3,2.34265395]
[1722349753625,3.00412,3328.8,3327.8,3.00492]
[1722349753834,3.00412,3328.8,3328.0,3.00475]
[1722349753835,3.00409,3328.8,3328.0,3.00475]
[1722349754012,3.00409,3328.8,3328.1,0.06008538]
[1722349754193,3.00428,3328.6,3328.1,0.06008538]
[1722349754523,3.00428,3328.6,3327.9,2.3754]
[1722349754524,3.00412,3328.8,3327.9,5.38028]
[1722349754742,3.00423,3328.7,3327.9,5.38028]
[1722349754881,3.00423,3328.7,3328.0,3.00479]
[1722349755398,3.00423,3328.7,3327.9,3.213924]
[1722349755592,3.00376,3329.2,3327.9,3.213924]
[1722349755835,6.00387,3329.1,3327.8,3.00496]
[1722349755980,3.0044,3328.5,3327.8,3.00496]
[1722349756376,3.00413,3328.8,3327.9,3.00489]
[1722349756610,3.00413,3328.8,3328.0,3.0048]
[1722349756810,3.00413,3328.8,3328.0,3.06488979]
[1722349757493,3.00395,3329.0,3328.2,3.00461]
[1722349757738,3.00382,3329.1,3328.3,0.06008439]
[1722349758034,3.00409,3328.8,3328.1,3.00469]
[1722349758882,3.00409,3328.8,3328.2,0.0915601]
[1722349759992,3.00392,3329.0,3328.3,2.3586]
[1722349760193,1.16542344,3329.1,3328.4,3.09591931]
[1722349760398,3.00377,3329.2,3328.4,0.09147931]
[1722349760620,3.00392,3329.0,3328.3,2.3586]
[1722349761022,3.00406,3328.9,3328.3,2.3586]
[1722349761183,3.00406,3328.9,3328.4,0.09147931]
[1722349761532,8.10423442,3329.3,3328.4,3.15600376]
[1722349761735,3.00391,3329.0,3328.4,0.09147931]
[1722349761937,3.00409,3328.8,3328.4,0.09147931]
[1722349763035,3.00419,3328.7,3328.4,0.09147931]
[1722349763331,3.00395,3329.0,3328.0,3.00474]
[1722349763491,3.00413,3328.8,3328.5,0.09161262]
[1722349763690,3.00426,3328.6,3328.5,0.09161262]
[1722349763990,3.00421,3328.7,3327.9,3.00487]
[1722349764185,3.00428,3328.6,3328.0,3.0]
[1722349764391,3.00424,3328.7,3328.0,3.0]
[1722349764703,3.00414,3328.8,3328.1,3.00467]
[1722349764902,3.00414,3328.8,3328.2,3.00461]
[1722349765104,3.00405,3328.9,3328.2,3.06463815]
[1722349765315,3.00394,3329.0,3328.3,0.06008631]
[1722349765543,9.8336935,3329.3,3328.4,3.0044]
[1722349765710,6.8300435,3329.3,3328.8,3.00407]
[1722349766060,0.5086957,3329.5,3328.9,0.06007618]
[1722349766355,0.5086957,3329.5,3329.1,3.00381]
[1722349766658,3.5121957,3329.5,3328.9,0.06007618]
[1722349767007,3.00354,3329.4,3328.8,2.339]
[1722349767348,0.5086957,3329.5,3328.8,3.00401]
[1722349767582,6.8300435,3330.0,3328.9,0.0600721]
[1722349767711,3.00288,3330.2,3329.5,3.00338]
[1722349767911,0.300288,3330.2,3329.6,0.06006207]
[1722349768249,3.00251,3330.6,3329.9,3.00308]
[1722349768608,6.8300435,3330.7,3329.9,3.00302]
[1722349768803,3.00246,3330.6,3329.9,3.00302]
[1722349769052,3.00211,3331.0,3330.1,2.3778]
[1722349769355,3.00211,3331.0,3330.2,3.06281664]
[1722349769506,3.00211,3331.0,3330.1,2.3778]
[1722349769507,3.00228,3330.8,3330.1,2.3778]
[1722349769707,3.00212,3331.0,3330.2,0.06004667]
[1722349769946,3.00177,3331.4,3330.4,3.00264]
[1722349769947,3.00199,3331.2,3330.4,3.00264]
[1722349770155,6.00356,3331.4,3330.5,3.00249]
[1722349770343,3.00176,3331.4,3330.6,3.06247661]
[1722349770527,0.300176,3331.3,3330.6,3.00243]
[1722349770854,0.300176,3331.3,3330.8,3.00226]
[1722349771013,3.00165,3331.5,3330.9,3.0021]
[1722349771216,3.00165,3331.5,3330.7,0.0600438]
[1722349771415,3.00165,3331.5,3330.8,3.00225]
[1722349771632,3.00188,3331.3,3330.7,0.0600438]
[1722349771830,3.00188,3331.3,3330.4,3.00262]
[1722349772025,3.00188,3331.3,3330.6,3.0024]
[1722349772243,3.00188,3331.3,3330.5,3.0]
[1722349772244,3.00149,3331.7,3330.9,3.00213]
[1722349772528,6.8300435,3332.0,3331.0,3.00209]
[1722349772730,3.00158,3331.6,3330.8,3.00222]
[1722349772935,3.00138,3331.8,3330.7,10.37232]
[1722349773161,3.00138,3331.8,3331.0,3.00209]
[1722349773376,3.00123,3332.0,3331.2,3.00186]
[1722349773377,3.00121,3332.0,3331.2,3.00186]
[1722349773659,3.00121,3332.0,3331.3,3.00176]
[1722349773660,3.301333,3332.0,3331.3,3.00176]
[1722349774180,3.00064,3332.7,3331.9,3.00123]
[1722349774463,3.00062,3332.7,3331.9,0.06001766]
[1722349774681,3.00088,3332.4,3332.0,0.0886572]
[1722349774838,3.00088,3332.4,3331.5,7.37]
[1722349775016,0.24623,3333.0,3331.6,0.08881843]
[1722349775017,3.00095,3332.3,3331.6,0.08881843]
[1722349775215,3.00114,3332.1,3331.6,0.08881843]
[1722349775463,3.00143,3331.8,3331.6,0.08881843]
[1722349775658,3.00143,3331.8,3331.1,3.0]
[1722349775822,3.00143,3331.8,3331.2,0.0888806]
[1722349776019,3.00121,3332.0,3331.2,0.0888806]
[1722349776219,3.00134,3331.9,3331.2,3.0907406]
[1722349776420,3.00121,3332.0,3331.2,3.0907606]
[1722349776667,6.00249,3332.0,3331.2,3.0907606]
[1722349776838,3.00121,3332.0,3331.2,3.0907606]
[1722349777014,3.00121,3332.0,3331.2,4.96873466]
[1722349777246,3.00121,3332.0,3331.3,3.00181]
[1722349777619,6.00248,3332.0,3331.4,0.08882749]
[1722349777838,6.00248,3332.0,3331.2,1.87801406]
[1722349777839,3.0013,3331.9,3331.2,1.87801406]
[1722349778069,3.00149,3331.7,3331.3,0.08886781]
[1722349778384,3.00149,3331.7,3331.1,3.0]
[1722349778591,3.0017,3331.5,3331.4,0.08883299]
[1722349778733,3.0017,3331.5,3331.0,7.37]
[1722349778934,3.0017,3331.5,3331.4,0.08883299]
[1722349779170,3.0017,3331.5,3331.0,7.37]
[1722349779381,3.0017,3331.5,3331.4,0.08889631]
[1722349779680,3.00197,3331.2,3330.5,7.37]
[1722349780240,3.00178,3331.4,3330.5,10.3725]
[1722349780684,3.00208,3331.1,3330.5,7.37]
[1722349781063,3.00201,3331.2,3330.5,7.37]
[1722349781383,3.0019,3331.3,3330.5,10.37253]
[1722349781605,3.00185,3331.3,3330.6,3.00239]
[1722349782575,3.00185,3331.3,3330.5,8.633903]
[1722349782790,3.00192,3331.2,3330.5,11.636413]
[1722349784919,3.0017,3331.5,3330.6,1.70309622]
[1722349785070,3.0017,3331.5,3330.8,3.00221]
[1722349785568,3.0017,3331.5,3330.9,0.06003431]
[1722349785770,3.00187,3331.3,3330.6,4.64543778]
[1722349786107,3.0017,3331.5,3330.7,3.00236]
[1722349786498,3.0017,3331.5,3330.6,3.00244]
[1722349786701,3.00184,3331.3,3330.6,3.00238]
[1722349787288,3.0017,3331.5,3330.7,3.00235]
[1722349787488,3.0017,3331.5,3330.8,0.06003435]
[1722349787690,3.00152,3331.7,3330.8,0.06003435]
[1722349787691,3.00152,3331.7,3330.9,3.00217]
[1722349787908,3.00133,3331.9,3331.0,3.06212437]
[1722349788079,3.00138,3331.8,3331.1,3.00197]
[1722349788282,3.00138,3331.8,3331.2,0.06003038]
[1722349788675,3.00156,3331.6,3330.9,3.00213]
[1722349788878,3.00133,3331.9,3331.0,0.08909338]
[1722349789110,3.00133,3331.9,3330.7,1.337473]
[1722349789111,3.00188,3331.3,3330.7,1.337473]
[1722349789307,3.301573,3331.8,3331.1,0.08905306]
[1722349789508,3.00188,3331.3,3330.6,3.0]
[1722349789728,3.00215,3331.0,3330.6,3.0]
[1722349790004,3.00228,3330.8,3330.4,2.2665]
[1722349790332,3.00176,3331.4,3330.2,7.37]
[1722349790333,3.00206,3331.1,3330.2,7.37]
[1722349790519,3.00181,3331.4,3330.2,7.37]
[1722349790520,0.850176,3331.3,3330.2,7.37]
[1722349790725,3.00271,3330.4,3330.2,7.37]
[1722349790883,3.00252,3330.6,3330.2,7.37]
[1722349791285,6.00465,3330.8,3330.2,7.37]
[1722349791482,3.00201,3331.1,3330.2,9.65229]
[1722349791696,3.00214,3331.0,3330.3,3.06276689]
[1722349791939,3.0022,3330.9,3330.3,0.06004689]
[1722349792115,3.00237,3330.7,3330.2,7.37]
[1722349792611,6.0048,3330.7,3330.2,7.37]
[1722349792809,3.00229,3330.8,3330.2,7.37]
[1722349793011,3.00229,3330.8,3330.2,12.655099]
[1722349793195,3.00229,3330.8,3330.2,9.652299]
[1722349793404,3.00238,3330.7,3330.2,7.37]
[1722349793627,3.00246,3330.6,3330.2,7.37]
[1722349794219,3.00265,3330.4,3330.2,7.37]
[1722349794425,3.00265,3330.4,3329.9,2.4024]
[1722349794730,3.00282,3330.2,3329.9,2.4024]
[1722349795028,3.00275,3330.3,3329.9,2.4024]
[1722349795227,6.00537,3330.4,3329.9,2.4024]
[1722349795413,3.00197,3331.2,3329.9,2.4024]
[1722349795591,3.00197,3331.2,3329.4,42.37]
[1722349795592,3.00306,3330.0,3329.4,42.37]
[1722349795788,3.00288,3330.2,3329.4,38.00353]
[1722349795991,3.00292,3330.1,3329.4,38.00353]
[1722349796222,3.003,3330.0,3329.4,35.0]
[1722349796403,0.300288,3330.2,3329.3,2.4638]
[1722349796648,6.00249,3330.6,3329.3,2.4638]
[1722349796844,3.00334,3329.7,3329.1,42.37]
[1722349797080,3.00303,3330.0,3329.1,7.37]
[1722349797273,3.0035,3329.5,3329.1,7.37]
[1722349798145,3.00359,3329.4,3329.1,7.37]
[1722349798344,3.00365,3329.3,3329.1,7.37]
[1722349798544,3.00378,3329.2,3328.8,37.3638]
[1722349798743,6.00702,3329.5,3328.8,40.41281288]
[1722349798960,3.00349,3329.5,3328.8,43.41683288]
[1722349800369,3.00334,3329.7,3329.0,3.00384]
[1722349800547,3.00334,3329.7,3328.8,40.41281288]
[1722349800548,3.00342,3329.6,3329.1,0.30639113]
[1722349800745,3.00285,3330.2,3329.0,3.00389]
[1722349800746,3.0032,3329.8,3329.0,3.00389]
[1722349800948,3.00334,3329.7,3328.9,6.00788]
[1722349801288,3.00285,3330.2,3328.8,37.3638]
[1722349801289,0.59140155,3330.2,3328.8,37.3638]
[1722349801579,3.00355,3329.4,3328.8,2.3638]
[1722349801762,3.00319,3329.8,3328.9,0.29645127]
[1722349801937,3.00333,3329.7,3329.0,3.00384]
[1722349802139,3.00333,3329.7,3328.9,0.23638]
[1722349802140,3.00351,3329.5,3328.9,0.23638]
[1722349802484,0.59140155,3330.2,3329.0,0.06006917]
[1722349802639,1.28325335,3330.5,3329.0,0.06006917]
[1722349802640,3.00299,3330.1,3329.3,3.00358]
[1722349802835,3.00271,3330.4,3329.5,3.0034]
[1722349803051,3.00274,3330.3,3329.6,0.0600591]
[1722349803281,17.736,3331.2,3329.6,0.0600591]
[1722349803282,3.00265,3330.4,3329.6,0.0600591]
[1722349803450,3.00243,3330.7,3330.0,3.00299]
[1722349803648,3.00256,3330.5,3330.1,0.300299]
[1722349803851,3.00271,3330.4,3329.9,0.0600549]
[1722349804109,3.00274,3330.3,3329.9,0.0600549]
[1722349804259,3.00274,3330.3,3329.7,37.4616]
[1722349804460,3.0026,3330.5,3329.8,3.10906778]
[1722349804800,3.00279,3330.3,3329.7,2.4616]
[1722349804956,3.00297,3330.1,3329.7,37.4616]
[1722349805153,3.003,3330.1,3329.7,35.0]
[1722349805400,3.00329,3329.7,3329.4,7.37]
[1722349805704,3.00329,3329.7,3329.2,2.2557]
[1722349805885,3.00329,3329.7,3329.0,3.00384]
[1722349805886,3.00311,3329.9,3329.0,35.0]
[1722349806096,3.00311,3329.9,3328.8,7.37]
[1722349806097,3.00333,3329.7,3328.8,7.37]
[1722349806261,3.00361,3329.4,3328.8,10.37408]
[1722349806904,3.00363,3329.3,3328.8,7.37]
[1722349807400,3.00329,3329.7,3328.9,3.06401271]
[1722349807598,3.00332,3329.7,3329.0,4.04729127]
[1722349807762,3.00332,3329.7,3329.1,0.06006868]
[1722349807965,3.00314,3329.9,3329.1,0.06006868]
[1722349808161,3.00332,3329.7,3329.1,0.06006868]
[1722349808601,3.00389,3329.1,3328.6,2.2865]
[1722349808805,3.00357,3329.4,3328.6,2.2865]
[1722349808965,3.00405,3328.9,3328.3,35.0]
[1722349809163,3.00387,3329.1,3328.3,35.0]
[1722349809365,3.00387,3329.1,3328.4,3.0044]
[1722349809672,3.00404,3328.9,3328.2,3.00457]
[1722349809872,3.00396,3329.0,3328.2,3.00457]
[1722349810072,3.00365,3329.3,3328.3,35.0]
[1722349810389,0.68300435,3329.8,3328.3,35.0]
[1722349810594,3.00353,3329.5,3328.7,3.00416]
[1722349810902,3.0037,3329.3,3328.7,0.300416]
[1722349811667,3.00374,3329.2,3328.7,0.300416]
[1722349811868,3.00333,3329.7,3328.7,0.300416]
[1722349812118,3.00341,3329.6,3328.9,3.00398]
[1722349812412,3.00282,3330.2,3329.5,3.00336]
[1722349812570,6.8300435,3330.6,3329.6,0.06006222]
[1722349812772,3.00264,3330.4,3329.7,3.00321]
[1722349813068,3.0028,3330.3,3329.8,0.60665822]
[1722349813370,6.8300435,3330.6,3329.1,5.2958]
[1722349813712,1.52920244,3330.5,3329.1,2.2958]
[1722349813916,3.00299,3330.1,3329.2,35.0]
[1722349814071,3.00297,3330.1,3329.2,35.0]
[1722349814278,3.00277,3330.3,3329.2,35.0]
[1722349814279,3.00281,3330.3,3329.3,3.04901288]
[1722349814612,3.00323,3329.8,3329.0,7.37]
[1722349814814,3.0034,3329.6,3329.0,7.37]
[1722349814984,3.00344,3329.6,3329.0,7.37]
[1722349815369,3.00318,3329.8,3329.2,3.00372]
[1722349815514,3.00328,3329.7,3329.1,3.0038]
[1722349815812,3.00317,3329.9,3329.2,3.06373797]
[1722349815975,3.0,3330.2,3329.2,3.06373797]
[1722349816176,3.0027,3330.4,3329.6,3.0033]
[1722349816381,6.8300435,3330.6,3329.7,0.06005772]
[1722349816617,3.00274,3330.3,3329.7,3.06332772]
[1722349816792,3.00274,3330.3,3329.6,3.30368]
[1722349816975,6.8300435,3330.6,3329.7,3.06330635]
[1722349817179,3.5111157,3330.7,3329.6,0.30033]
[1722349817180,3.5111157,3330.7,3330.0,3.00295]
[1722349817378,3.5111157,3330.7,3330.0,3.06300372]
[1722349817581,3.5111157,3330.7,3330.1,3.00289]
[1722349817819,3.5111157,3330.7,3330.1,0.09036006]
[1722349818019,3.0026,3330.5,3330.1,0.09036006]
[1722349818208,3.35372957,3330.5,3330.1,0.09036006]
[1722349818417,3.5111257,3330.7,3329.9,3.003]
[1722349818622,3.5111257,3330.7,3330.2,0.09007721]
[1722349818959,8.38447609,3331.4,3330.9,3.00212]
[1722349818960,6.8300435,3331.4,3330.9,3.00212]
[1722349819128,3.00121,3332.0,3331.1,3.00194]
[1722349819448,3.00121,3332.0,3330.4,2.2595]
[1722349819449,1.52852249,3331.9,3331.2,0.08966561]
[1722349819596,3.00167,3331.5,3331.2,0.08966561]
[1722349819800,3.00167,3331.5,3330.8,3.00222]
[1722349820002,3.00167,3331.5,3330.7,38.0]
[1722349820003,3.00186,3331.3,3330.9,0.0896764]
[1722349820300,3.00169,3331.5,3330.9,0.0896764]
[1722349820526,3.00189,3331.3,3330.7,38.0]
[1722349820739,3.00168,3331.5,3331.0,0.08908787]
[1722349820899,3.00168,3331.5,3330.8,3.00221]
[1722349821241,3.00188,3331.3,3330.9,0.0891282]
[1722349821398,3.00149,3331.7,3330.9,0.0891282]
[1722349821606,3.00149,3331.7,3330.7,35.0]
[1722349821607,3.00207,3331.1,3330.7,35.0]
[1722349821806,3.00224,3330.9,3330.7,35.0]
[1722349822052,3.00221,3330.9,3330.7,35.0]
[1722349822248,3.00205,3331.1,3330.7,35.0]
[1722349822462,3.00205,3331.1,3330.4,2.2595]
[1722349822931,3.00206,3331.1,3330.4,5.26213]
[1722349823095,5.52985267,3332.3,3330.5,0.526213]
[1722349823096,6.0034,3331.5,3330.5,0.526213]
[1722349823396,1.55565364,3332.0,3330.5,3.58625536]
[1722349823543,0.5086957,3332.5,3331.5,3.00159]
[1722349823544,3.00103,3332.2,3331.5,3.00159]
[1722349823738,3.00103,3332.2,3331.5,3.06161579]
[1722349823943,6.00179,3332.4,3331.6,3.00155]
[1722349824138,6.00179,3332.4,3331.7,0.06002603]
[1722349824139,3.00087,3332.4,3331.7,0.06002603]
[1722349824380,3.00087,3332.4,3331.8,3.00136]
[1722349824690,3.00088,3332.4,3331.7,3.06148603]
[1722349824838,3.00093,3332.3,3331.8,0.06002091]
[1722349825039,3.00091,3332.4,3331.8,0.06002091]
[1722349825496,3.00093,3332.3,3331.8,0.06002091]
[1722349825693,3.00093,3332.3,3331.7,0.06002092]
[1722349826041,3.00121,3332.0,3331.4,2.341]
[1722349826275,3.00121,3332.0,3331.4,5.341]
[1722349826473,3.00105,3332.2,3331.4,5.341]
[1722349826699,3.00115,3332.1,3331.4,8.34272]
[1722349826875,3.00102,3332.2,3331.5,3.00164]
[1722349827088,3.00111,3332.1,3331.5,0.834264]
[1722349828010,0.35094857,3332.4,3331.4,2.341]
[1722349828161,3.00155,3331.7,3330.9,2.3977]
[1722349828566,3.00133,3331.9,3331.1,3.00201]
[1722349828826,0.5086957,3332.5,3331.4,3.00172]
[1722349828963,3.0007,3332.6,3331.8,3.00137]
[1722349829167,3.00079,3332.5,3331.4,3.00168]
[1722349829405,3.00142,3331.8,3331.1,3.0]
[1722349829575,3.00145,3331.8,3330.9,5.39988]
[1722349829774,3.0013,3331.9,3331.1,3.002]
[1722349830012,3.0013,3331.9,3331.0,3.0]
[1722349830013,3.00111,3332.1,3331.3,3.00181]
[1722349830179,3.00111,3332.1,3331.4,3.00169]
[1722349830418,3.00077,3332.5,3331.1,3.841938]
[1722349830708,3.00059,3332.7,3331.2,0.06002801]
[1722349830891,3.0008,3332.5,3331.7,3.00141]
[1722349831066,3.00092,3332.4,3331.8,0.300141]
[1722349831267,3.00066,3332.6,3331.9,5.50535741]
[1722349831467,0.3902866,3333.0,3331.9,5.50535741]
[1722349831468,3.00035,3333.0,3332.0,3.00115]
[1722349831693,3.00053,3332.8,3332.1,3.06106274]
[1722349831909,3.00035,3333.0,3332.3,3.00092]
[1722349831910,3.00031,3333.0,3332.3,3.00092]
[1722349832093,3.00031,3333.0,3332.4,0.06001037]
[1722349832409,3.5089857,3333.1,3332.2,3.00093]
[1722349832611,3.5089857,3333.1,3332.4,0.06000977]
[1722349832918,8.16116,3334.1,3332.3,3.00092]
[1722349832919,2.99962,3333.8,3332.9,3.00033]
[1722349833209,5.31214,3334.2,3332.9,0.300033]
[1722349833210,2.99976,3333.6,3332.9,0.300033]
[1722349833414,2.99976,3333.6,3332.5,0.301]
[1722349833415,2.99954,3333.9,3333.0,3.00023]
[1722349833705,2.99967,3333.7,3333.0,3.00023]
[1722349833907,2.99954,3333.9,3333.1,3.06016492]
[1722349834416,2.99966,3333.8,3333.1,3.06019492]
[1722349834564,2.99968,3333.7,3333.1,0.05999492]
[1722349834765,2.9995,3333.9,3333.1,0.05999492]
[1722349834971,2.9995,3333.9,3333.1,3.06015492]
[1722349835172,2.9995,3333.9,3333.2,0.05999404]
[1722349835173,2.99966,3333.8,3333.2,0.05999404]
[1722349836216,2.99946,3334.0,3333.3,0.08804539]
[1722349836388,2.99958,3333.8,3333.3,0.14803946]
[1722349836576,2.99962,3333.8,3333.3,0.14803946]
[1722349836973,2.99944,3334.0,3333.3,0.14803946]
[1722349837174,2.99965,3333.8,3333.3,0.14803946]
[1722349837514,5.99988,3333.4,3333.3,0.08804539]
[1722349838101,3.00015,3333.2,3332.0,5.43142]
[1722349838301,3.00044,3332.9,3332.0,5.43142]
[1722349838495,3.0006,3332.7,3332.1,0.08784352]
[1722349838709,2.99979,3333.6,3332.1,0.08784352]
[1722349838710,3.00089,3332.4,3332.1,0.08784352]
[1722349839331,3.00094,3332.3,3332.1,0.08784352]
[1722349839830,3.0007,3332.6,3332.1,0.08784352]
[1722349840143,3.00085,3332.4,3332.1,0.08784352]
[1722349840300,3.00071,3332.6,3332.1,0.08784352]
[1722349840696,3.00075,3332.5,3332.1,0.08784352]
[1722349841000,3.00077,3332.5,3332.1,0.08784352]
[1722349841226,3.00066,3332.6,3332.1,0.08784352]
[1722349841397,3.0007,3332.6,3332.1,0.33965787]
[1722349841595,6.00142,3332.6,3332.1,0.33965787]
[1722349841830,3.00075,3332.5,3332.1,0.08784352]
[1722349842044,3.00086,3332.4,3332.1,0.08784352]
[1722349842714,3.00062,3332.7,3332.1,0.08784352]
[1722349843039,3.00066,3332.6,3332.1,0.08784352]
[1722349843538,3.00093,3332.3,3332.1,0.08784352]
[1722349843745,3.00081,3332.5,3332.1,0.08784352]
[1722349843944,3.0007,3332.6,3332.1,0.08784352]
[1722349844443,3.00089,3332.4,3332.1,0.08784352]
[1722349844628,3.00041,3332.9,3332.1,0.08784352]
[1722349844834,3.00092,3332.4,3332.1,0.08784352]
[1722349844997,3.00092,3332.4,3331.7,7.37]
[1722349845202,3.00074,3332.6,3331.9,3.00123]
[1722349845436,3.00076,3332.5,3332.0,0.08801581]
[1722349845638,3.00038,3333.0,3332.2,3.00095]
[1722349845843,6.8300435,3333.6,3332.3,5.43411535]
[1722349846118,3.00034,3333.0,3332.3,12.83195665]
[1722349846453,3.00041,3332.9,3332.3,12.83195665]
[1722349846639,3.0005,3332.8,3332.3,4.04438732]
[1722349846812,3.00035,3333.0,3332.3,2.46108665]
[1722349847010,3.00053,3332.8,3332.3,2.46108665]
[1722349847414,3.00035,3333.0,3332.3,2.46108665]
[1722349847755,6.00073,3333.0,3332.4,0.84620967]
[1722349847923,3.00035,3333.0,3332.4,0.84620967]
[1722349848125,3.00017,3333.2,3332.5,0.08772628]
[1722349848361,2.99999,3333.4,3332.6,0.06000549]
[1722349848531,3.00005,3333.3,3332.6,3.06061549]
[1722349848714,3.00005,3333.3,3332.7,0.0876512]
[1722349849563,3.00017,3333.2,3332.7,0.0876512]
[1722349850030,3.00048,3332.8,3332.7,0.0876512]
[1722349850216,3.300528,3332.8,3332.3,2.3732]
[1722349850416,6.00126,3332.7,3332.3,2.3732]
[1722349850616,3.00061,3332.7,3332.3,2.3732]
[1722349851026,3.00065,3332.7,3332.3,2.3732]
[1722349851353,3.0008,3332.5,3332.4,0.0877088]
[1722349851715,3.00059,3332.7,3332.0,7.37]
[1722349851957,3.00075,3332.5,3332.4,0.08775006]
[1722349852161,3.00087,3332.4,3332.0,7.37]
[1722349853392,3.00072,3332.6,3332.0,7.37]
[1722349853594,3.00076,3332.5,3332.0,7.37]
[1722349853891,3.00084,3332.4,3332.0,7.37]
[1722349854092,6.00174,3332.4,3332.0,7.37]
[1722349854300,6.00174,3332.4,3331.7,3.00146]
[1722349854301,3.00128,3332.0,3331.6,7.37]
[1722349854478,3.00111,3332.1,3331.3,5.4034]
[1722349854679,3.0013,3331.9,3330.9,7.37]
[1722349854998,3.00217,3331.0,3330.5,7.37]
[1722349855180,3.00226,3330.9,3330.3,2.4354]
[1722349855381,3.00211,3331.0,3330.3,5.43804]
[1722349855674,3.00188,3331.3,3330.4,3.00264]
[1722349855675,3.00184,3331.3,3330.4,3.00264]
[1722349855993,3.00182,3331.4,3330.6,3.00245]
[1722349856498,3.00189,3331.3,3330.5,0.543804]
[1722349856682,3.00243,3330.7,3330.3,2.4354]
[1722349856925,3.00243,3330.7,3330.1,7.37]
[1722349857102,3.00254,3330.6,3330.1,7.37]
[1722349857452,3.00254,3330.6,3329.6,3.00329]
[1722349857453,3.00214,3331.0,3329.6,7.37]
[1722349857587,0.5086957,3330.8,3329.2,7.37]
[1722349857786,3.00249,3330.6,3329.2,10.37371]
[1722349857986,3.00308,3330.0,3329.2,10.37371]